[Event "Festival Groningen-A 2024"]
[Site "Groningen"]
[Date "2024.12.26"]
[Round "5.5"]
[White "Poetsch, Hagen"]
[Black "Madularea, David"]
[Result "1-0"]
[ECO "C01"]
[WhiteElo "2491"]
[BlackElo "2245"]
[Annotator "TA"]
[PlyCount "51"]
[EventDate "2024.12.21"]
[EventType "swiss"]
[EventCountry "NED"]
[SourceTitle "playchess.com"]
[Source "ChessBase"]
[SourceQuality "1"]
[TimeControl "40/5400+30:1800+30"]

{[%evp 9,51,20,20,15,42,29,36,20,33,30,41,33,44,35,25,10,31,38,28,36,30,48,100,69,93,90,218,204,210,211,372,375,562,547,788,714,683,526,528,515,1078,1059,1104,1098]} 1. e4 {[%emt 0:00:02]} e6 {[%emt 0:00:04]} 2. d4 {[%emt 0:00:05]} d5 {[%emt 0:00:02]} 3. Nc3 {[%emt 0:00:06]} Bb4 {[%emt 0:00:05]} 4. exd5 {[%emt 0:00:16]} exd5 {[%emt 0:00:05]} 5. Bd3 {[%emt 0:00:04]} Ne7 {[%emt 0:00:04]} 6. a3 {[%emt 0:00:18]} Bd6 {[%emt 0:04:02]} 7. Qh5 {[%emt 0:01:31][%csl LRd5,LRh7][%cal Og1f3]} Be6 {[%emt 0:03:29]} 8. Nf3 {[%emt 0:03:27][%cal Oe1g1]} (8. Bxh7 $2 Nd7 (8... Bf5 $2 9. Qxf5 Nxf5 10. Bxf5 $19) 9. Qe2 Rxh7 $19) 8... Nbc6 {[%emt 0:05:30]} 9. Nb5 {[%emt 0:03:09][%cal Oe1g1]} (9. Bxh7 $2 g6 10. Qh4 Qd7 $19 (10... Nf5 $2 11. Qxd8+ Rxd8 12. Bxg6 $19)) 9... a6 {[%emt 0:04:44]} 10. Nxd6+ {[%emt 0:00:09]} Qxd6 {[%emt 0:00:04]} 11. O-O {[%emt 0:02:48][%cal Of1e1]} (11. Bxh7 $2 O-O-O 12. Ng5 f6 (12... Nxd4 $2 13. Qd1 $19) 13. Nxe6 Qxe6+ 14. Be3 g6 $19 (14... Nxd4 $2 15. O-O-O $19)) 11... O-O-O {[%emt 0:03:37]} 12. Ne5 {[%emt 0:13:20]} (12. Bxh7 g6 13. Qg5 Rxh7 $17) 12... Nxd4 {[%emt 0:18:54]} (12... f6 {simplifies} 13. Nxc6 Nxc6 14. c3 Qd7) 13. Nxf7 {[%emt 0:00:52]} Bxf7 {[%emt 0:00:07]} 14. Qxf7 {[%emt 0:00:06][%cal Oc1g5]} Rdf8 {[%emt 0:03:34]} 15. Qh5 $1 {[%emt 0:00:39]} (15. Qxg7 Nf3+ 16. gxf3 Rhg8 $17) 15... c5 {[%emt 0:01:50]} (15... Kb8 $14) 16. Bg5 {[%emt 0:15:22][%cal Og5e7]} (16. Bxh7 $2 g6 17. Qh3+ Qd7 $19) 16... Ng6 {[%emt 0:09:49]} 17. b4 {[%emt 0:09:17]} c4 {[%emt 0:09:01]} (17... Ne6 $16) 18. Qg4+ $18 {[%emt 0:00:42]} Ne6 {[%emt 0:00:04]} 19. Bf5 {[%emt 0:04:17]} Kd7 $2 {[%emt 0:07:51]} (19... Rxf5 {is a better defense.} 20. Qxf5 Rf8) 20. Rad1 {[%emt 0:02:41]} Re8 {[%emt 0:02:03]} (20... Rxf5 $142 21. Qxf5 Kc6) 21. Rfe1 {[%emt 0:04:14] and Rxe6 would now be decisive} h5 {[%emt 0:06:09]} 22. Qf3 {[%emt 0:08:41][%cal Od1d5] Threatening mate with Rxd5!.} Kc6 {[%emt 0:01:38] [#]} 23. Rxd5 $3 {[%emt 0:01:56][%mdl 512]} Qxd5 {[%emt 0:00:25] [#]} 24. Be4 $1 {[%emt 0:00:08]} (24. Rxe6+ Rxe6 25. Bxe6 Qxf3 26. gxf3 Rf8 $19) ({Inferior is} 24. Bxg6 Qxf3 25. gxf3 (25. Bxe8+ Rxe8 26. gxf3 Nc7 $11) 25... Nc7 $11) 24... Nxg5 {[%emt 0:00:11]} (24... Ngf4 $142 25. Bxf4 (25. Bxd5+ Nxd5 26. Qe4 b5 $18) 25... Nxf4 26. Bxd5+ Nxd5) 25. Bxd5+ {[%emt 0:00:06]} Kd6 {[%emt 0:00:04]} 26. Qg3+ {[%emt 0:00:32]} 1-0

[Event "Festival Groningen-A 2024"]
[Site "Groningen"]
[Date "2024.12.26"]
[Round "5.6"]
[White "Manish Anto Cristiano F"]
[Black "Mitusov, Semen"]
[Result "1/2-1/2"]
[ECO "C88"]
[WhiteElo "2296"]
[BlackElo "2465"]
[Annotator "TA"]
[PlyCount "108"]
[EventDate "2024.12.21"]
[EventType "swiss"]
[EventCountry "NED"]
[SourceTitle "playchess.com"]
[Source "ChessBase"]
[SourceQuality "1"]
[TimeControl "40/5400+30:1800+30"]

{[%evp 28,108,29,0,0,-18,-21,-8,-13,-18,0,-7,3,0,28,8,154,164,132,50,102,19,16,6,83,95,92,95,94,69,138,131,157,158,168,102,119,21,25,28,59,63,44,50,97,18,50,57,49,16,27,0,33,36,45,34,39,33,30,27,27,26,13,0,0,0,0,0,9,0,0,0,8,0,0,0,0,0,0,0,0,0,0]} 1. e4 {[%emt 0:00:03]} e5 {[%emt 0:00:52]} 2. Nf3 {[%emt 0:00:08]} Nc6 {[%emt 0:00:06]} 3. Bb5 {[%emt 0:00:08]} a6 {[%emt 0:00:28]} 4. Ba4 {[%emt 0:00:08]} Nf6 {[%emt 0:00:34]} 5. O-O {[%emt 0:00:10]} Be7 {[%emt 0:00:11]} 6. Re1 {[%emt 0:00:20]} b5 {[%emt 0:00:10]} 7. Bb3 {[%emt 0:00:08]} O-O {[%emt 0:02:46]} 8. a4 {[%emt 0:07:29]} Bb7 {[%emt 0:01:04]} 9. d3 {[%emt 0:00:25]} d6 {[%emt 0:03:30]} 10. c3 {[%emt 0:05:09]} Na5 {[%emt 0:01:28]} 11. Bc2 {[%emt 0:01:59]} c5 {[%emt 0:00:48]} 12. d4 {[%emt 0:07:42]} cxd4 {[%emt 0:25:32]} 13. cxd4 {[%emt 0:00:35]} b4 {[%emt 0:06:28]} 14. Nbd2 {[%emt 0:04:35]} Nd7 {[%emt 0:13:02]} 15. b3 {[%emt 0:08:07]} (15. d5) 15... exd4 $11 {[%emt 0:03:35]} 16. Nxd4 {[%emt 0:00:29]} Bf6 {[%emt 0:00:48]} 17. Bb2 {[%emt 0:08:38]} Qb6 {[%emt 0:02:22]} 18. Nf1 {[%emt 0:01:00]} Rfe8 {[%emt 0:01:21]} 19. Ne3 {[%emt 0:01:17]} g6 {[%emt 0:05:56]} 20. Qd2 {[%emt 0:09:29]} Bg7 {[%emt 0:01:07]} 21. Ng4 {[%emt 0:04:04]} d5 {[%emt 0:12:49]} (21... Ne5 $11 22. Nh6+ Kh8) 22. Nh6+ $16 {[%emt 0:05:51]} Kf8 {[%emt 0:00:13] [#]} 23. Qf4 {[%emt 0:00:45]} (23. exd5 $1 $16 {[%cal Od4e6] Ne6+! is the strong threat.} Bxd5 (23... Rxe1+ $2 24. Rxe1 Nc5 25. d6 $18) 24. Rab1) 23... Ne5 $1 $14 {[%emt 0:00:46]} 24. Nf3 {[%emt 0:05:02]} (24. Rad1 $16) 24... Qf6 $1 $11 {[%emt 0:10:03]} (24... Nxf3+ 25. gxf3 f6 26. exd5 Bxd5 (26... Rxe1+ 27. Rxe1 Bxd5 28. Bd4 $18) 27. Bd4 $18) 25. Bxe5 {[%emt 0:06:22]} Qxf4 {[%emt 0:00:04]} (25... Rxe5 $11 {remains equal.} 26. Qxe5 Qxe5 27. Nxe5 Bxe5) 26. Bxf4 $16 {[%emt 0:00:07]} Bxa1 {[%emt 0:00:05]} 27. Rxa1 {[%emt 0:00:26]} dxe4 {[%emt 0:00:07]} 28. Ne1 {[%emt 0:03:22]} Re6 {[%emt 0:01:52]} ({Black should try} 28... Bc8 $1 $14) 29. Ng4 $16 {[%emt 0:01:13]} Rc8 {[%emt 0:00:26]} 30. Rd1 {[%emt 0:02:51]} Ke7 {[%emt 0:01:42]} 31. Bg5+ {[%emt 0:04:24]} (31. Ne3 $18) 31... f6 $16 {[%emt 0:00:34]} 32. Nxf6 {[%emt 0:00:06]} ({Better is} 32. Bd2 $16 Rb6 33. Bf4) 32... Rxf6 $11 {[%emt 0:00:22]} 33. Rd4 {[%emt 0:00:48]} h6 {[%emt 0:04:28]} 34. Bxf6+ {[%emt 0:02:12]} Kxf6 {[%emt 0:00:01]} 35. Rxb4 {[%emt 0:00:23]} (35. Bxe4 Rc1 36. f3 (36. Rd6+ $2 Ke7 $19) 36... Bxe4 (36... Rxe1+ 37. Kf2 $15) (36... Nxb3 37. Rxb4 Rxe1+ 38. Kf2 $14) 37. Rxe4 Nxb3 38. Rf4+ Ke5 39. Rxb4 Rxe1+ $19) 35... Ke5 {[%emt 0:00:01] [#]} (35... Bd5 $14 {should be considered.}) 36. Kf1 {[%emt 0:02:22]} (36. f3 $1 $16) 36... g5 {[%emt 0:00:23]} 37. Ke2 {[%emt 0:03:14]} Bd5 {[%emt 0:00:09]} 38. Rb6 {[%emt 0:00:06]} Nc6 {[%emt 0:00:14]} 39. b4 {[%emt 0:02:13]} (39. Rxa6 $2 Nb4 40. Rxh6 Nxc2 $19) 39... h5 {[%emt 0:02:22]} 40. Bd1 {[%emt 0:01:08]} (40. Rxa6 $2 Nxb4 (40... Bc4+ $2 41. Kd2 $19) 41. Rg6 Nxc2 $19) 40... Nd4+ {[%emt 0:01:07]} 41. Kd2 {[%emt 0:30:08]} Rf8 {[%emt 0:11:04]} 42. f3 {[%emt 0:00:00]} (42. Rxa6 $2 Rxf2+ 43. Kc1 Rf1 $19) 42... exf3 {[%emt 0:01:20]} 43. gxf3 {[%emt 0:00:00]} (43. Rxa6 $2 {too greedy.} fxg2 44. Nxg2 Rf2+ (44... Bxg2 $2 45. b5 $19) 45. Kc3 Rxg2 $19) 43... Bxf3 {[%emt 0:01:37]} 44. Nxf3+ {[%emt 0:00:00]} Nxf3+ {[%emt 0:00:04]} 45. Ke3 {[%emt 0:00:00]} Nxh2 {[%emt 0:01:21]} 46. Bxh5 {[%emt 0:00:00]} Nf1+ {[%emt 0:01:41]} 47. Kd3 {[%emt 0:00:00]} Rf4 {[%emt 0:04:17]} 48. a5 {[%emt 0:00:00]} g4 {[%emt 0:05:44]} 49. Rg6 {[%emt 0:00:00]} Rxb4 {[%emt 0:01:32]} 50. Bxg4 {[%emt 0:00:00]} Ra4 {[%emt 0:00:07]} 51. Bc8 {[%emt 0:01:39]} Ra3+ {[%emt 0:00:10]} 52. Ke2 {[%emt 0:00:58]} Ng3+ {[%emt 0:00:05]} 53. Kd1 {[%emt 0:00:17]} Ne4 {[%emt 0:01:00]} 54. Rxa6 {[%emt 0:00:34]} Nd6 {[%emt 0:01:09]} 1/2-1/2

[Event "Festival Groningen-A 2024"]
[Site "Groningen"]
[Date "2024.12.26"]
[Round "5.7"]
[White "De Winter, Arthur"]
[Black "Van der Hagen, Loek"]
[Result "1-0"]
[ECO "D90"]
[WhiteElo "2446"]
[BlackElo "2315"]
[Annotator "TA"]
[PlyCount "73"]
[EventDate "2024.12.21"]
[EventType "swiss"]
[EventCountry "NED"]
[SourceTitle "playchess.com"]
[Source "ChessBase"]
[SourceQuality "1"]
[TimeControl "40/5400+30:1800+30"]

{[%evp 9,73,-8,-17,-18,0,-38,0,0,4,9,34,30,54,45,129,137,128,129,212,115,102,102,102,101,134,97,170,127,126,73,133,89,146,87,133,97,129,128,144,131,174,108,177,183,188,201,237,219,409,410,401,428,569,564,518,402,559,543,535,545,1174,1166,1587,1466,2571,2116]} 1. d4 {[%emt 0:00:03]} Nf6 {[%emt 0:00:11]} 2. c4 {[%emt 0:00:04]} g6 {[%emt 0:00:14]} 3. Nc3 {[%emt 0:00:06]} d5 {[%emt 0:00:06]} 4. Nf3 {[%emt 0:00:03]} Bg7 {[%emt 0:00:08]} 5. h4 {[%emt 0:00:04]} dxc4 {[%emt 0:07:42][%cal Oc7c5]} 6. e4 {[%emt 0:02:07][%cal Oc1e3] [#]} c5 $1 {[%emt 0:14:28]} 7. d5 {[%emt 0:00:02] [#]} (7. Bxc4 cxd4) 7... b5 $1 {[%emt 0:08:11] Dodges Qa4} 8. h5 $1 {[%emt 0:02:32]} Nxh5 {[%emt 0:15:44]} 9. Nxb5 {[%emt 0:00:14]} (9. e5 Bg4 10. Be2 (10. Nxb5 Nd7 $15) 10... O-O $15) 9... Qa5+ {[%emt 0:02:28] [#]} 10. Nc3 $1 {[%emt 0:00:10][%cal Oc1d2]} Bxc3+ {[%emt 0:02:20]} (10... Nd7 11. Qc2) 11. bxc3 {[%emt 0:00:02][%cal Oc1h6]} Qxc3+ {[%emt 0:02:25]} (11... Nf6 $14) 12. Bd2 $16 {[%emt 0:00:03]} Qa3 {[%emt 0:00:07]} 13. Bxc4 {[%emt 0:05:47]} Ba6 {[%emt 0:00:27] [#]} (13... Nd7 $16) 14. Qb3 {[%emt 0:05:54]} (14. Ne5 $1 $18 {aiming for Rh3.} Bxc4 15. Nxc4) 14... Qxb3 {[%emt 0:00:45]} 15. axb3 {[%emt 0:00:06]} Bxc4 {[%emt 0:01:26]} 16. bxc4 {[%emt 0:00:25]} Nd7 {[%emt 0:05:28]} 17. Ke2 {[%emt 0:05:28][%mdl 1024] White has strong compensation.} Nhf6 {[%emt 0:05:20]} (17... a5 $16) 18. Bc3 {[%emt 0:17:54]} O-O {[%emt 0:04:49] [#]} 19. Nd2 {[%emt 0:00:35] White is much more active.} (19. Ng5 $142 $1 {[%cal Rg5h7]}) 19... Rfe8 {[%emt 0:09:28]} (19... a5 $142) 20. f3 {[%emt 0:02:32]} e6 {[%emt 0:04:35]} (20... a5 $142) 21. Kf2 {[%emt 0:02:03]} (21. Ra6 $142) 21... Nh5 {[%emt 0:07:29]} (21... a5 $142) 22. g3 {[%emt 0:06:10]} Nb6 {[%emt 0:03:40] Black is weak on the dark squares} 23. Ra5 $36 {[%emt 0:02:14][%mdl 2048] White has strong initiative.} f5 {[%emt 0:02:05]} 24. Rha1 {[%emt 0:02:35]} (24. Rxc5 Na4 25. g4 exd5 (25... Nxc5 26. gxh5 g5 27. Bd4 $15) 26. gxh5 fxe4 (26... Nxc5 27. hxg6 hxg6 28. cxd5 $11) 27. fxe4 (27. Rxd5 $2 e3+ 28. Ke1 Nxc3 $19) 27... dxe4 $15 (27... Nxc5 28. hxg6 hxg6 29. cxd5 $11)) 24... fxe4 {[%emt 0:01:26]} 25. fxe4 {[%emt 0:00:08]} ({Not} 25. Rxc5 exd5 26. fxe4 dxe4 $17) (25. d6 $18) 25... Re7 {[%emt 0:00:42]} (25... Nd7 $16 26. Rxa7 Rxa7 27. Rxa7 Nhf6) 26. Rxc5 $18 {[%emt 0:01:07]} Rf8+ {[%emt 0:00:05]} 27. Kg2 {[%emt 0:00:30]} Ref7 {[%emt 0:01:20]} 28. Bd4 {[%emt 0:00:36]} e5 $2 {[%emt 0:00:40]} (28... exd5 {keeps fighting.} 29. cxd5 Rb7) 29. Bg1 {[%emt 0:00:26]} (29. Bxe5 Rf2+ 30. Kh3 Nd7 $17 (30... Rxd2 31. Rxa7 Rc2 32. Rac7 $14)) 29... Nf6 {[%emt 0:00:25]} 30. Rc6 {[%emt 0:03:40]} Kg7 {[%emt 0:00:42]} 31. c5 {[%emt 0:02:03]} Nc8 {[%emt 0:00:09]} 32. Rb1 {[%emt 0:02:11] Repels Rb7} h5 {[%emt 0:00:30]} 33. d6 {[%emt 0:02:14]} a5 {[%emt 0:00:18]} 34. Nc4 {[%emt 0:02:32]} Nxe4 {[%emt 0:00:50]} 35. Nxe5 {[%emt 0:00:12]} Rf5 {[%emt 0:00:45]} 36. Rb7+ {[%emt 0:00:12]} Kh6 {[%emt 0:00:18]} 37. Be3+ {[%emt 0:00:04]} 1-0

[Event "Festival Groningen-A 2024"]
[Site "Groningen"]
[Date "2024.12.26"]
[Round "5.8"]
[White "Palchuk, Andrii"]
[Black "Cernov, Henrik"]
[Result "1/2-1/2"]
[ECO "E62"]
[WhiteElo "2372"]
[BlackElo "2187"]
[Annotator "TA"]
[PlyCount "91"]
[EventDate "2024.12.21"]
[EventType "swiss"]
[EventCountry "NED"]
[SourceTitle "playchess.com"]
[Source "ChessBase"]
[SourceQuality "1"]
[TimeControl "40/5400+30:1800+30"]

{[%evp 16,91,45,37,37,31,40,20,22,11,32,19,21,2,2,10,8,0,11,6,11,7,9,9,12,5,8,7,14,11,5,20,11,18,16,0,0,-5,18,18,111,18,24,18,51,8,13,0,13,0,0,0,0,0,0,0,6,0,0,0,0,0,0,-10,3,0,2,0,0,0,0,0,0,0,0,0,0,0]} 1. d4 {[%emt 0:05:44]} Nf6 {[%emt 0:00:03]} 2. Nf3 {[%emt 0:00:09]} g6 {[%emt 0:00:03]} 3. g3 {[%emt 0:00:07]} Bg7 {[%emt 0:00:03]} 4. Bg2 {[%emt 0:00:06]} O-O {[%emt 0:00:06]} 5. O-O {[%emt 0:00:05]} d6 {[%emt 0:00:05]} 6. c4 {[%emt 0:00:06]} Nc6 {[%emt 0:00:03]} 7. Nc3 {[%emt 0:00:04]} e5 {[%emt 0:00:04]} 8. d5 {[%emt 0:00:04]} Nb8 {[%emt 0:00:03][%cal Bc6b8,Bb8a6,Ba6c5,Bc5a4,Ba4c3][%mdl 32]} 9. e4 {[%emt 0:00:11]} a5 {[%emt 0:00:10]} 10. b3 {[%emt 0:00:06]} Na6 {[%emt 0:06:03]} 11. Re1 {[%emt 0:00:07]} Nc5 {[%emt 0:04:39]} 12. Rb1 {[%emt 0:00:07]} Bd7 {[%emt 0:06:02]} 13. a3 {[%emt 0:01:01]} b6 {[%emt 0:12:39]} 14. b4 {[%emt 0:20:08]} axb4 {[%emt 0:00:14]} 15. axb4 {[%emt 0:00:06]} Na4 {[%emt 0:01:32]} 16. Qc2 {[%emt 0:02:55]} Nxc3 {[%emt 0:04:12]} 17. Qxc3 {[%emt 0:00:22]} Ra4 {[%emt 0:03:19]} 18. Nd2 {[%emt 0:03:27]} Qe7 {[%emt 0:03:01]} 19. Ra1 {[%emt 0:07:35]} Rfa8 {[%emt 0:03:12]} 20. Rxa4 {[%emt 0:00:48]} Rxa4 {[%emt 0:00:14]} 21. Nb3 {[%emt 0:02:14]} h5 {[%emt 0:03:26]} 22. h3 {[%emt 0:01:04]} Qe8 {[%emt 0:02:47]} 23. c5 {[%emt 0:16:54]} bxc5 {[%emt 0:02:35]} 24. bxc5 {[%emt 0:00:30]} Qb8 {[%emt 0:04:42]} 25. Nd2 {[%emt 0:39:00]} dxc5 {[%emt 0:43:43][%cal Oh5h4]} 26. Ba3 {[%emt 0:00:00]} c4 {[%emt 0:00:00]} 27. Nxc4 {[%emt 0:00:00]} Qc8 {[%emt 0:00:00]} (27... c6 $11 {remains equal.}) 28. Nb2 {[%emt 0:00:00]} (28. Nxe5 $16 {Hoping for Bb2.} h4 29. gxh4) 28... Ra8 {[%emt 0:00:00]} 29. Kh2 {[%emt 0:00:00][%cal Oa3e7]} Qa6 {[%emt 0:00:00]} 30. Bc5 {[%emt 0:02:30]} Bb5 {[%emt 0:00:00] Prevents Nc4. The position is equal.} 31. Nd1 {[%emt 0:00:30]} (31. Qxe5 $2 Ng4+ 32. hxg4 Bxe5 $19) 31... Qa4 {[%emt 0:00:00]} 32. Qb2 {[%emt 0:00:00][%cal Od1c3]} (32. Qxe5 $2 {too greedy.} Ng4+ 33. hxg4 Bxe5 $19) 32... Bd3 {[%emt 0:00:00]} 33. Qc1 {[%emt 0:00:00]} (33. Qxe5 $2 Ng4+ 34. hxg4 Bxe5 $19) 33... Qc2 {[%emt 0:01:02]} (33... Nxe4 $2 {is the wrong capture.} 34. Nb2 Qa2 35. Nxd3 $18) (33... Bxe4 $2 {loses.} 34. Nc3 Qa5 35. Nxe4 $18) 34. Qxc2 {[%emt 0:00:00]} Bxc2 {[%emt 0:00:01]} 35. Nc3 {[%emt 0:00:00]} Rb8 {[%emt 0:03:20]} 36. Re2 {[%emt 0:00:44]} Bd3 {[%emt 0:00:06][%cal Ob8b3] [#] Strongly threatening ...Rb3!} 37. Rd2 {[%emt 0:00:14]} Bc4 {[%emt 0:00:38]} 38. Be3 {[%emt 0:00:16]} Bf8 {[%emt 0:00:30]} 39. Na4 {[%emt 0:00:45]} Rb5 {[%emt 0:00:44]} 40. Nb2 {[%emt 0:01:28]} Bb3 {[%emt 0:00:27]} 41. Nd3 {[%emt 0:04:14]} Bd6 {[%emt 0:01:05]} 42. Rb2 {[%emt 0:03:42]} Bc4 {[%emt 0:02:49][%cal Bb3c4,Bc4b5,Bb5d7][%mdl 32]} 43. Rxb5 Bxb5 {[%emt 0:00:01]} 44. Nc5 {[%emt 0:00:17]} Nd7 {[%emt 0:03:02]} 45. Nxd7 {[%emt 0:00:18]} Bxd7 {[%emt 0:00:01]} 46. Kg1 {[%emt 0:00:14] Weighted Error Value: White=0.10 (very precise) /Black=0.08 (flawless) .  Mistake:       	White=1     	Black=1      Inaccurate:     	White=1     	Black=1      OK:         	White=12    	Black=18} 1/2-1/2

[Event "Festival Groningen-A 2024"]
[Site "Groningen"]
[Date "2024.12.26"]
[Round "5.9"]
[White "Laxman, R.R."]
[Black "Slagboom, Leandro"]
[Result "1/2-1/2"]
[ECO "D75"]
[WhiteElo "2310"]
[BlackElo "2370"]
[Annotator "TA"]
[PlyCount "136"]
[EventDate "2024.12.21"]
[EventType "swiss"]
[EventCountry "NED"]
[SourceTitle "playchess.com"]
[Source "ChessBase"]
[SourceQuality "1"]
[TimeControl "40/5400+30:1800+30"]

{[%evp 20,136,0,-17,-9,-23,-20,-51,-46,-50,-31,-35,0,-10,0,0,-8,-15,0,0,0,0,0,0,0,0,4,0,0,-83,-73,-79,0,0,0,0,10,0,45,41,66,50,38,30,58,0,2,0,0,0,33,27,59,39,43,31,107,99,96,96,100,105,103,76,202,152,246,218,450,428,440,439,462,528,467,462,297,91,91,95,91,94,80,75,75,74,74,75,73,66,22,25,25,8,8,8,35,26,31,31,35,12,22,8,8,7,8,8,8,8,8,8,8,7,8,8,8,8,8]} 1. Nf3 {[%emt 0:00:04]} Nf6 {[%emt 0:00:28]} 2. g3 {[%emt 0:03:02]} c5 {[%emt 0:01:34]} 3. c4 {[%emt 0:01:37]} Nc6 {[%emt 0:01:13]} 4. Bg2 {[%emt 0:00:08]} d5 {[%emt 0:03:24]} 5. cxd5 {[%emt 0:01:06]} Nxd5 {[%emt 0:00:05]} 6. Nc3 {[%emt 0:01:28]} g6 {[%emt 0:00:56]} 7. d4 {[%emt 0:16:46]} Bg7 {[%emt 0:01:47]} 8. e3 {[%emt 0:03:17]} Nxc3 {[%emt 0:10:24]} 9. bxc3 {[%emt 0:00:02]} Qa5 {[%emt 0:00:31]} 10. Bd2 {[%emt 0:00:27]} O-O {[%emt 0:02:07]} 11. O-O {[%emt 0:00:23]} Qa6 {[%emt 0:04:38]} 12. Ng5 {[%emt 0:03:02]} Bd7 {[%emt 0:05:13]} 13. Ne4 {[%emt 0:00:57]} b6 {[%emt 0:00:15]} 14. h4 {[%emt 0:06:36]} h6 {[%emt 0:05:58]} 15. f4 {[%emt 0:00:17]} Rac8 {[%emt 0:09:22]} 16. h5 {[%emt 0:02:02]} Na5 {[%emt 0:03:09]} 17. g4 {[%emt 0:00:41]} cxd4 {[%emt 0:05:06]} 18. exd4 {[%emt 0:01:22]} Qd3 {[%emt 0:03:16]} 19. Re1 {[%emt 0:03:12] and Bf1 should not be overlooked} (19. hxg6 Nc4 20. gxf7+ Rxf7 21. Bc1) 19... Qb5 {[%emt 0:07:44]} (19... Nc4 $2 20. Bf1 Nb2 21. Bxd3 $18) 20. Rb1 {[%emt 0:04:17]} Qc4 $1 {[%emt 0:00:50]} 21. Ra1 {[%emt 0:04:59]} Qb5 {[%emt 0:03:57]} 22. Rb1 {[%emt 0:00:30]} Qc4 $1 {[%emt 0:00:05]} 23. Ra1 {[%emt 0:00:05]} Qc7 {[%emt 0:00:49]} 24. Qf3 {[%emt 0:00:50]} (24. hxg6 $11 fxg6 25. Nf2) 24... Nc4 $17 {[%emt 0:01:21] Strongly threatening ...f5.} 25. Bc1 {[%emt 0:00:18]} Bc6 {[%emt 0:11:37]} (25... gxh5 $1 $17 26. f5 Nd6 27. Nxd6 Qxd6 (27... exd6 28. f6 $14)) 26. hxg6 $11 {[%emt 0:01:29]} fxg6 {[%emt 0:00:27]} 27. Qd3 {[%emt 0:00:39]} Nd6 {[%emt 0:04:30]} 28. Bd2 {[%emt 0:02:06]} Qd7 {[%emt 0:01:44]} 29. Nxd6 {[%emt 0:00:49]} Qxd6 {[%emt 0:01:44]} 30. Re2 {[%emt 0:03:28]} Bxg2 {[%emt 0:01:06]} 31. Kxg2 {[%emt 0:00:17]} Rf6 {[%emt 0:07:14]} 32. Qf3 {[%emt 0:01:32] Active counter play!} (32. Rae1 $14) 32... Re6 {[%emt 0:01:40]} (32... g5 {is interesting.} 33. Qb7 Rc7 34. Qe4 gxf4 35. Rf1 Rg6) 33. Rae1 {[%emt 0:00:18][%cal Ba1e1,Be1e2,Be2e6][%mdl 32]} Rxe2+ {[%emt 0:00:01]} 34. Rxe2 {[%emt 0:00:08]} Rf8 {[%emt 0:00:40]} 35. Qb7 {[%emt 0:01:52]} Rf7 {[%emt 0:00:42]} 36. Qa8+ {[%emt 0:01:41]} (36. Qxa7 Qc6+ 37. Kf2 e5 $15) 36... Kh7 {[%emt 0:00:13]} 37. Qe4 {[%emt 0:00:54]} Bf6 {[%emt 0:01:58]} ({Black should play} 37... Qa3 $14) 38. Qe6 $16 {[%emt 0:00:29]} Qxe6 {[%emt 0:00:38]} 39. Rxe6 {[%emt 0:00:06][%mdl 4096] Endgame KRB-KRB} g5 {[%emt 0:00:16]} 40. f5 {[%emt 0:00:38]} Rf8 {[%emt 0:00:49]} 41. Kf3 {[%emt 0:31:11]} Rc8 {[%emt 0:02:58] [#]} (41... Kg7 $16) 42. d5 $1 $18 {[%emt 0:00:00][%cal Oc3c4]} Rd8 {[%emt 0:06:22] [#]} (42... Kg7 $16) 43. Ke4 $1 {[%emt 0:00:00]} h5 $2 {[%emt 0:01:06]} (43... Kg8 {was worth a try.} 44. Be3 Kf7) 44. gxh5 {[%emt 0:00:00]} Kh6 {[%emt 0:03:03]} 45. c4 {[%emt 0:00:00]} Kxh5 {[%emt 0:09:47]} 46. Bb4 {[%emt 0:00:00]} Rc8 {[%emt 0:00:38]} 47. Bxe7 {[%emt 0:00:00]} Rxc4+ {[%emt 0:00:06]} 48. Kd3 $2 {[%emt 0:00:00]} (48. Ke3 $18 {is the precise move to win.} Bxe7 49. Rxe7) 48... Rd4+ $16 {[%emt 0:00:35]} 49. Ke3 {[%emt 0:00:00]} Rxd5 {[%emt 0:00:30]} 50. Bxf6 {[%emt 0:00:00]} ({Much worse is} 50. Rxf6 $6 Re5+ 51. Kf3 Rxe7 $11) 50... Rxf5 {[%emt 0:00:27] KRB-KR} 51. Be5 {[%emt 0:00:00]} Kg4 {[%emt 0:04:23]} 52. Bd6 {[%emt 0:00:00]} Ra5 {[%emt 0:01:05]} 53. a3 {[%emt 0:00:00]} Kf5 {[%emt 0:00:18] Prevents Re5+.} 54. Re7 {[%emt 0:00:00]} Rd5 {[%emt 0:01:33]} 55. Bb8 {[%emt 0:00:00]} Ra5 {[%emt 0:00:53]} 56. Kd4 {[%emt 0:00:00]} (56. Bxa7 Rxa3+ 57. Kf2 Ra2+ 58. Ke1 Ra1+ 59. Ke2 b5 $16) ({Less strong is} 56. Rxa7 Rb5 57. Kd4 Rb3 $18) 56... Rxa3 {[%emt 0:00:29]} 57. Bxa7 {[%emt 0:00:00]} (57. Rxa7 Rxa7 58. Bxa7 Kf4) 57... Rb3 {[%emt 0:01:03]} 58. Kc4 {[%emt 0:00:00]} Rb1 {[%emt 0:00:11]} 59. Bb8 {[%emt 0:00:00]} Kg4 {[%emt 0:01:01]} 60. Be5 {[%emt 0:00:00]} Kf3 {[%emt 0:00:45]} 61. Bc3 {[%emt 0:00:00]} g4 {[%emt 0:00:31]} 62. Kd3 {[%emt 0:00:00]} g3 {[%emt 0:00:50]} 63. Rf7+ {[%emt 0:00:00]} Kg2 {[%emt 0:00:31]} 64. Ke2 {[%emt 0:00:00]} Rb3 {[%emt 0:01:32]} 65. Bd4 {[%emt 0:00:00]} b5 {[%emt 0:00:25]} 66. Rg7 {[%emt 0:00:00]} Ra3 {[%emt 0:00:27]} 67. Rg5 {[%emt 0:00:00]} b4 {[%emt 0:00:52]} 68. Rb5 {[%emt 0:00:10]} Rb3 {[%emt 0:00:43]} 1/2-1/2